[Event "*** Titled Tuesday 3|2 Blitz"]
[Site "Chess.com"]
[Date "2016.05.03"]
[Round "7"]
[White "FearNoEvil12"]
[Black "YuriyKrykun"]
[Result "0-1"]
[WhiteElo "1897"]
[BlackElo "2280"]
[TimeControl "180+2"]
[EndTime "12:30:39 PDT"]
[Termination "YuriyKrykun won by resignation"]

1. e4 {[%clk 0:03:01.3]} 1... c5 {[%clk 0:03:00.4]} 2. Nf3 {[%clk 0:02:59.4]}
2... Nc6 {[%clk 0:03:01.7]} 3. d4 {[%clk 0:02:58.3]} 3... cxd4 {[%clk
0:03:03.2]} 4. Nxd4 {[%clk 0:02:58.4]} 4... e5 {[%clk 0:03:04.8]} 5. Nb5 {[%clk
0:02:09.8]} 5... a6 {[%clk 0:03:04.8]} 6. Nd6+ {[%clk 0:02:06.7]} 6... Bxd6
{[%clk 0:03:05.7]} 7. Qxd6 {[%clk 0:02:05.5]} 7... Qe7 {[%clk 0:03:07.3]} 8.
Qxe7+ {[%clk 0:02:00.8]} 8... Ngxe7 {[%clk 0:03:08.9]} 9. Nc3 {[%clk 0:02:00.5]}
9... d5 {[%clk 0:03:10.1]} 10. exd5 {[%clk 0:01:59.9]} 10... Nb4 {[%clk
0:03:11.2]} 11. Bd3 {[%clk 0:01:55.8]} 11... Nxd3+ {[%clk 0:03:11.6]} 12. cxd3
{[%clk 0:01:56]} 12... Bf5 {[%clk 0:03:12.9]} 13. Ke2 {[%clk 0:01:55.5]} 13...
Rd8 {[%clk 0:03:13.2]} 14. Be3 {[%clk 0:01:50.9]} 14... Nxd5 {[%clk 0:03:13.6]}
15. Rhd1 {[%clk 0:01:49.6]} 15... O-O {[%clk 0:03:13.5]} 16. Rac1 {[%clk
0:01:47.9]} 16... f6 {[%clk 0:02:53.9]} 17. f3 {[%clk 0:01:43.9]} 17... Nxe3
{[%clk 0:02:51.8]} 18. Kxe3 {[%clk 0:01:44]} 18... Rd7 {[%clk 0:02:53.2]} 19.
Ne4 {[%clk 0:01:44.3]} 19... Rfd8 {[%clk 0:02:50.2]} 20. Rc3 {[%clk 0:01:44.8]}
20... Bxe4 {[%clk 0:02:51.1]} 21. fxe4 {[%clk 0:01:44.1]} 21... Kf7 {[%clk
0:02:52]} 22. Rf1 {[%clk 0:01:30.6]} 22... Ke6 {[%clk 0:02:50.5]} 23. g4 {[%clk
0:01:30.1]} 23... g5 {[%clk 0:02:46.9]} 24. Rh1 {[%clk 0:01:23.6]} 24... h5
{[%clk 0:02:47.6]} 25. gxh5 {[%clk 0:01:23.5]} 25... Rh8 {[%clk 0:02:48.2]} 26.
Rcc1 {[%clk 0:01:14.9]} 26... Rxh5 {[%clk 0:02:48.5]} 27. h3 {[%clk 0:01:15.6]}
27... Rdh7 {[%clk 0:02:48.1]} 28. Kd2 {[%clk 0:01:10]} 28... Rxh3 {[%clk
0:02:47.8]} 29. Rxh3 {[%clk 0:01:09.8]} 29... Rxh3 {[%clk 0:02:49.7]} 30. Rc7
{[%clk 0:01:10.4]} 30... Rh2+ {[%clk 0:02:28.2]} 31. Kc3 {[%clk 0:01:10.1]}
31... b5 {[%clk 0:02:29.2]} 32. Rc6+ {[%clk 0:01:09.4]} 32... Kf7 {[%clk
0:02:30.8]} 33. Rxa6 {[%clk 0:01:10.1]} 33... g4 {[%clk 0:02:32.2]} 34. a4
{[%clk 0:01:05.5]} 34... g3 {[%clk 0:02:11.4]} 35. axb5 {[%clk 0:00:52.8]} 35...
g2 {[%clk 0:02:12.2]} 36. Ra7+ {[%clk 0:00:52.8]} 36... Kg6 {[%clk 0:02:13.1]}
37. Ra8 {[%clk 0:00:52.3]} 37... Kh7 {[%clk 0:02:14.6]} 38. Ra7+ {[%clk
0:00:47]} 38... Kh6 {[%clk 0:02:15.7]} 39. Ra8 {[%clk 0:00:47.3]} 39... g1=Q
{[%clk 0:02:14.8]} 0-1

[Event "*** Titled Tuesday 3|2 Blitz"]
[Site "Chess.com"]
[Date "2016.05.03"]
[Round "7"]
[White "vinceyoung15"]
[Black "Badouuu"]
[Result "1-0"]
[WhiteElo "2147"]
[BlackElo "1992"]
[TimeControl "180+2"]
[EndTime "12:30:56 PDT"]
[Termination "vinceyoung15 won by resignation"]

1. e4 {[%clk 0:03:01.9]} 1... c5 {[%clk 0:03:01.4]} 2. Nf3 {[%clk 0:03:02]} 2...
Nc6 {[%clk 0:03:01.3]} 3. c3 {[%clk 0:03:01.8]} 3... g6 {[%clk 0:02:59.2]} 4. d4
{[%clk 0:03:02.3]} 4... Bg7 {[%clk 0:03:01.1]} 5. Be3 {[%clk 0:02:54.8]} 5...
cxd4 {[%clk 0:02:39.1]} 6. cxd4 {[%clk 0:02:37.9]} 6... Nf6 {[%clk 0:02:41]} 7.
Nc3 {[%clk 0:02:38.1]} 7... O-O {[%clk 0:02:38.6]} 8. e5 {[%clk 0:02:31.2]} 8...
Ng4 {[%clk 0:02:34.8]} 9. Bf4 {[%clk 0:02:28]} 9... d6 {[%clk 0:02:35.9]} 10.
exd6 {[%clk 0:02:26.5]} 10... exd6 {[%clk 0:02:34.7]} 11. Be2 {[%clk 0:02:28]}
11... Nf6 {[%clk 0:02:30.8]} 12. d5 {[%clk 0:02:24.5]} 12... Ne7 {[%clk
0:02:26.6]} 13. O-O {[%clk 0:02:24]} 13... a6 {[%clk 0:02:27]} 14. Qd2 {[%clk
0:02:19.2]} 14... Nf5 {[%clk 0:02:25]} 15. a4 {[%clk 0:02:09.4]} 15... Nh5
{[%clk 0:02:19.3]} 16. Bg5 {[%clk 0:02:07.6]} 16... f6 {[%clk 0:02:20]} 17. g4
{[%clk 0:02:05.9]} 17... fxg5 {[%clk 0:02:20.1]} 18. gxh5 {[%clk 0:02:07.2]}
18... g4 {[%clk 0:02:20.9]} 19. Ng5 {[%clk 0:02:05.8]} 19... gxh5 {[%clk
0:02:20.3]} 20. Ne6 {[%clk 0:01:57.2]} 20... Qf6 {[%clk 0:02:02.1]} 21. Ne4
{[%clk 0:01:50]} 21... Qxb2 {[%clk 0:01:53.7]} 22. Qxb2 {[%clk 0:01:48.1]} 22...
Bxb2 {[%clk 0:01:55.6]} 23. Rab1 {[%clk 0:01:48.7]} 23... Bxe6 {[%clk
0:01:56.2]} 24. dxe6 {[%clk 0:01:41.6]} 24... Be5 {[%clk 0:01:55.3]} 25. Rxb7
{[%clk 0:01:42.1]} 25... Nd4 {[%clk 0:01:46.4]} 26. Bc4 {[%clk 0:01:30.4]} 26...
Kh8 {[%clk 0:01:47.1]} 27. e7 {[%clk 0:01:30.1]} 27... Rfb8 {[%clk 0:01:41.1]}
28. Rxb8+ {[%clk 0:01:21.6]} 28... Rxb8 {[%clk 0:01:41.8]} 29. Bf7 {[%clk
0:01:23.1]} 29... d5 {[%clk 0:01:27.5]} 30. Nc5 {[%clk 0:01:08.6]} 30... Nf3+
{[%clk 0:01:11.4]} 31. Kh1 {[%clk 0:01:07.8]} 31... Nd2 {[%clk 0:01:09.5]} 32.
Rd1 {[%clk 0:01:06.1]} 32... Ne4 {[%clk 0:00:56.2]} 33. Nxe4 {[%clk 0:01:03.5]}
1-0

[Event "*** Titled Tuesday 3|2 Blitz"]
[Site "Chess.com"]
[Date "2016.05.03"]
[Round "7"]
[White "KuzubovYuriy"]
[Black "exoticprincess"]
[Result "0-1"]
[WhiteElo "2608"]
[BlackElo "2809"]
[TimeControl "180+2"]
[EndTime "12:30:58 PDT"]
[Termination "exoticprincess won by resignation"]

1. d4 {[%clk 0:03:01.9]} 1... Nf6 {[%clk 0:03:01.2]} 2. c4 {[%clk 0:03:03.1]}
2... g6 {[%clk 0:03:02.7]} 3. Nc3 {[%clk 0:03:04.2]} 3... Bg7 {[%clk 0:03:04.3]}
4. Bg5 {[%clk 0:03:05]} 4... h6 {[%clk 0:03:03.9]} 5. Bh4 {[%clk 0:03:04.4]}
5... g5 {[%clk 0:03:04.4]} 6. Bg3 {[%clk 0:03:05.3]} 6... Nh5 {[%clk 0:03:05.2]}
7. e3 {[%clk 0:03:02.2]} 7... Nxg3 {[%clk 0:03:05.3]} 8. hxg3 {[%clk 0:03:04.1]}
8... d6 {[%clk 0:03:05.1]} 9. Bd3 {[%clk 0:03:04.6]} 9... Nd7 {[%clk 0:03:04.8]}
10. f4 {[%clk 0:03:00.6]} 10... Nf6 {[%clk 0:03:04.3]} 11. Nf3 {[%clk
0:02:58.2]} 11... c6 {[%clk 0:03:01.5]} 12. Qc2 {[%clk 0:02:56.9]} 12... Bd7
{[%clk 0:02:54.2]} 13. O-O-O {[%clk 0:02:55.7]} 13... Qa5 {[%clk 0:02:54]} 14.
Kb1 {[%clk 0:02:55.6]} 14... O-O-O {[%clk 0:02:50.6]} 15. e4 {[%clk 0:02:50.4]}
15... Ng4 {[%clk 0:02:49.1]} 16. Rhe1 {[%clk 0:02:44.8]} 16... Kb8 {[%clk
0:02:49.4]} 17. e5 {[%clk 0:02:42.9]} 17... gxf4 {[%clk 0:02:45.1]} 18. gxf4
{[%clk 0:02:43.3]} 18... dxe5 {[%clk 0:02:46.1]} 19. dxe5 {[%clk 0:02:40.6]}
19... Qb6 {[%clk 0:02:45.3]} 20. Na4 {[%clk 0:02:32.6]} 20... Qf2 {[%clk
0:02:33.8]} 21. Re2 {[%clk 0:01:48.6]} 21... Qg3 {[%clk 0:02:34.7]} 22. Nc5
{[%clk 0:01:49.3]} 22... Bc8 {[%clk 0:02:34.6]} 23. Qc1 {[%clk 0:01:38.2]} 23...
Nf2 {[%clk 0:02:26.9]} 24. Ne4 {[%clk 0:01:25.8]} 24... Nxe4 {[%clk 0:02:28.1]}
25. Bxe4 {[%clk 0:01:23.4]} 25... Rxd1 {[%clk 0:02:28.2]} 26. Qxd1 {[%clk
0:01:23.2]} 26... Qxf4 {[%clk 0:02:29.9]} 27. Bc2 {[%clk 0:01:20.8]} 27... Qxc4
{[%clk 0:02:25.1]} 28. Bb3 {[%clk 0:01:15.5]} 28... Rd8 {[%clk 0:02:16.6]} 29.
Qxd8 {[%clk 0:00:57.9]} 29... Qxe2 {[%clk 0:02:16.2]} 30. a3 {[%clk 0:00:50.7]}
30... Qxg2 {[%clk 0:02:13.5]} 31. Qxe7 {[%clk 0:00:45]} 31... Qxf3 {[%clk
0:02:08.5]} 32. Qd6+ {[%clk 0:00:45.9]} 32... Ka8 {[%clk 0:02:09.2]} 33. Ka2
{[%clk 0:00:28]} 33... a6 {[%clk 0:01:57.6]} 34. Qd8 {[%clk 0:00:20.5]} 34...
Qf5 {[%clk 0:01:58.5]} 35. e6 {[%clk 0:00:21.2]} 35... Qe5 {[%clk 0:01:59.7]}
0-1

[Event "*** Titled Tuesday 3|2 Blitz"]
[Site "Chess.com"]
[Date "2016.05.03"]
[Round "7"]
[White "Krasimir_Rusev"]
[Black "oskariot"]
[Result "0-1"]
[WhiteElo "2477"]
[BlackElo "2437"]
[TimeControl "180+2"]
[EndTime "12:31:24 PDT"]
[Termination "oskariot won by resignation"]

1. Nf3 {[%clk 0:03:01.9]} 1... c5 {[%clk 0:03:00.8]} 2. c4 {[%clk 0:03:03.3]}
2... g6 {[%clk 0:03:02.3]} 3. h4 {[%clk 0:03:01.2]} 3... Nf6 {[%clk 0:02:58.4]}
4. b3 {[%clk 0:03:01.1]} 4... d6 {[%clk 0:02:49.4]} 5. Bb2 {[%clk 0:03:02.1]}
5... Bg7 {[%clk 0:02:48.9]} 6. Nc3 {[%clk 0:02:53.9]} 6... Nc6 {[%clk
0:02:49.1]} 7. e3 {[%clk 0:02:50.2]} 7... O-O {[%clk 0:02:45.2]} 8. Be2 {[%clk
0:02:39.2]} 8... Bg4 {[%clk 0:02:45.5]} 9. Ng5 {[%clk 0:02:38.3]} 9... Bxe2
{[%clk 0:02:39.2]} 10. Qxe2 {[%clk 0:02:39.2]} 10... h6 {[%clk 0:02:39.7]} 11.
Qf3 {[%clk 0:02:25.1]} 11... Ne5 {[%clk 0:02:32.7]} 12. Qe2 {[%clk 0:02:20.5]}
12... hxg5 {[%clk 0:02:28.8]} 13. hxg5 {[%clk 0:02:21.6]} 13... Nfd7 {[%clk
0:01:47.6]} 14. f4 {[%clk 0:02:13]} 14... Nc6 {[%clk 0:01:48.6]} 15. g3 {[%clk
0:02:09.1]} 15... f5 {[%clk 0:01:40.5]} 16. gxf6 {[%clk 0:01:47.9]} 16... Nxf6
{[%clk 0:01:26.2]} 17. O-O-O {[%clk 0:01:41.6]} 17... d5 {[%clk 0:01:25.8]} 18.
Qd3 {[%clk 0:01:17.4]} 18... dxc4 {[%clk 0:01:19.3]} 19. Qxg6 {[%clk 0:01:08.6]}
19... Qd3 {[%clk 0:01:20.4]} 20. Qxd3 {[%clk 0:00:52.6]} 20... cxd3 {[%clk
0:01:21.3]} 21. Nb5 {[%clk 0:00:52.3]} 21... Ng4 {[%clk 0:01:21.1]} 22. Rh5
{[%clk 0:00:49.6]} 22... Bxb2+ {[%clk 0:01:21.2]} 23. Kxb2 {[%clk 0:00:47.2]}
23... Nf6 {[%clk 0:01:22.5]} 24. Rxc5 {[%clk 0:00:45.5]} 24... Rf7 {[%clk
0:01:23.6]} 25. Nc7 {[%clk 0:00:45]} 25... Rc8 {[%clk 0:01:23.4]} 26. Ne6 {[%clk
0:00:46.1]} 26... Rh7 {[%clk 0:01:20.6]} 27. g4 {[%clk 0:00:46.1]} 27... Ne4
{[%clk 0:01:19.9]} 28. Rc4 {[%clk 0:00:43.8]} 28... Nd6 {[%clk 0:01:20.6]} 29.
Rc5 {[%clk 0:00:41.9]} 29... Rh2 {[%clk 0:01:21.1]} 30. Rc3 {[%clk 0:00:29.1]}
30... Ne4 {[%clk 0:01:16.7]} 0-1

[Event "*** Titled Tuesday 3|2 Blitz"]
[Site "Chess.com"]
[Date "2016.05.03"]
[Round "7"]
[White "BahadirOzen"]
[Black "Winehouse83"]
[Result "1-0"]
[WhiteElo "2498"]
[BlackElo "2360"]
[TimeControl "180+2"]
[EndTime "12:31:50 PDT"]
[Termination "BahadirOzen won on time"]

1. b3 {[%clk 0:03:01.9]} 1... e5 {[%clk 0:02:50.1]} 2. Bb2 {[%clk 0:03:02.9]}
2... Nc6 {[%clk 0:02:50]} 3. e3 {[%clk 0:03:03.9]} 3... a6 {[%clk 0:02:39.9]} 4.
d4 {[%clk 0:02:35.6]} 4... exd4 {[%clk 0:02:31.8]} 5. exd4 {[%clk 0:02:37.5]}
5... d5 {[%clk 0:02:09.4]} 6. Nf3 {[%clk 0:02:37.9]} 6... Nf6 {[%clk 0:02:08.8]}
7. Be2 {[%clk 0:02:32.3]} 7... Bb4+ {[%clk 0:02:00.5]} 8. c3 {[%clk 0:02:32.9]}
8... Bd6 {[%clk 0:01:57.5]} 9. O-O {[%clk 0:02:34.8]} 9... Ne7 {[%clk
0:01:54.8]} 10. c4 {[%clk 0:02:30.6]} 10... c6 {[%clk 0:01:50]} 11. Ba3 {[%clk
0:02:11.3]} 11... Bxa3 {[%clk 0:01:21.9]} 12. Nxa3 {[%clk 0:02:13.2]} 12... O-O
{[%clk 0:01:21.8]} 13. Nc2 {[%clk 0:01:40]} 13... Bg4 {[%clk 0:01:03.9]} 14. Ne3
{[%clk 0:01:40.1]} 14... Bxf3 {[%clk 0:01:02.9]} 15. Bxf3 {[%clk 0:01:42]} 15...
Qd7 {[%clk 0:00:53.6]} 16. Qd3 {[%clk 0:01:41.9]} 16... Rad8 {[%clk 0:00:51]}
17. Rfd1 {[%clk 0:01:40]} 17... Rfe8 {[%clk 0:00:51.3]} 18. Rac1 {[%clk
0:01:40.5]} 18... g6 {[%clk 0:00:43.2]} 19. g3 {[%clk 0:01:41.2]} 19... h5
{[%clk 0:00:40.8]} 20. h4 {[%clk 0:01:40.7]} 20... Qh3 {[%clk 0:00:36.5]} 21.
Bg2 {[%clk 0:01:41.4]} 21... Qd7 {[%clk 0:00:35.9]} 22. Bf3 {[%clk 0:01:41.8]}
22... Qh3 {[%clk 0:00:36]} 23. Re1 {[%clk 0:01:14.4]} 23... Kg7 {[%clk
0:00:33.8]} 24. Rcd1 {[%clk 0:01:15.7]} 24... b5 {[%clk 0:00:16.1]} 25. Re2
{[%clk 0:01:16.7]} 25... Nc8 {[%clk 0:00:11.9]} 26. Rde1 {[%clk 0:01:17.6]}
26... Nd6 {[%clk 0:00:12.8]} 27. cxd5 {[%clk 0:01:18.2]} 27... cxd5 {[%clk
0:00:12.9]} 28. Nxd5 {[%clk 0:01:19.7]} 28... Rxe2 {[%clk 0:00:12.1]} 29. Rxe2
{[%clk 0:01:19.4]} 29... Nxd5 {[%clk 0:00:12.4]} 30. Bxd5 {[%clk 0:01:21.3]}
30... Nf5 {[%clk 0:00:13]} 31. Qe4 {[%clk 0:01:10.8]} 31... Qg4 {[%clk
0:00:09.8]} 32. Qe5+ {[%clk 0:01:10]} 32... Kg8 {[%clk 0:00:05]} 33. Bxf7+
{[%clk 0:01:07.2]} 33... Kxf7 {[%clk 0:00:05.8]} 34. Qc7+ {[%clk 0:01:08.5]} 1-0

[Event "*** Titled Tuesday 3|2 Blitz"]
[Site "Chess.com"]
[Date "2016.05.03"]
[Round "7"]
[White "motivated_bishop"]
[Black "Pomoc"]
[Result "1-0"]
[WhiteElo "2305"]
[BlackElo "2081"]
[TimeControl "180+2"]
[EndTime "12:32:16 PDT"]
[Termination "motivated_bishop won by resignation"]

1. d4 {[%clk 0:03:01.9]} 1... Nf6 {[%clk 0:03:00.1]} 2. c4 {[%clk 0:03:00]} 2...
g6 {[%clk 0:03:01]} 3. Nc3 {[%clk 0:03:01.1]} 3... d5 {[%clk 0:03:01.8]} 4. cxd5
{[%clk 0:03:00.9]} 4... Nxd5 {[%clk 0:03:03.7]} 5. e4 {[%clk 0:03:02.3]} 5...
Nxc3 {[%clk 0:03:04.7]} 6. bxc3 {[%clk 0:03:04.2]} 6... Bg7 {[%clk 0:03:05.5]}
7. Nf3 {[%clk 0:03:03.7]} 7... c5 {[%clk 0:03:04.4]} 8. Be3 {[%clk 0:03:04.4]}
8... O-O {[%clk 0:02:59.6]} 9. Be2 {[%clk 0:03:03.2]} 9... Qa5 {[%clk
0:02:40.3]} 10. O-O {[%clk 0:03:01.9]} 10... Nc6 {[%clk 0:02:32.5]} 11. d5
{[%clk 0:02:59.6]} 11... Ne5 {[%clk 0:02:31.3]} 12. Nxe5 {[%clk 0:02:57.4]}
12... Bxe5 {[%clk 0:02:31.4]} 13. c4 {[%clk 0:02:58.3]} 13... Bxa1 {[%clk
0:02:02.1]} 14. Qxa1 {[%clk 0:03:00.2]} 14... f6 {[%clk 0:02:03.1]} 15. e5
{[%clk 0:03:00]} 15... b6 {[%clk 0:01:35.4]} 16. Bh6 {[%clk 0:02:59.9]} 16...
Bf5 {[%clk 0:01:26.7]} 17. d6 {[%clk 0:02:51.9]} 17... exd6 {[%clk 0:01:13.5]}
18. exd6 {[%clk 0:01:47.3]} 18... Rf7 {[%clk 0:01:02.8]} 19. Bf3 {[%clk
0:01:45.9]} 19... Rd8 {[%clk 0:01:02.4]} 20. Bd5 {[%clk 0:01:41.4]} 20... Rxd6
{[%clk 0:00:57.7]} 21. Re1 {[%clk 0:01:40.5]} 21... Bd7 {[%clk 0:00:32.4]} 22.
h4 {[%clk 0:00:53.5]} 22... Rxd5 {[%clk 0:00:32.6]} 23. cxd5 {[%clk 0:00:54.6]}
23... c4 {[%clk 0:00:30.5]} 24. d6 {[%clk 0:00:40.5]} 24... Qh5 {[%clk
0:00:29.4]} 25. Qc1 {[%clk 0:00:34.4]} 25... Qxh4 {[%clk 0:00:24.9]} 26. Qe3
{[%clk 0:00:30.2]} 26... Rg7 {[%clk 0:00:05.7]} 27. Bxg7 {[%clk 0:00:28.6]}
27... Kxg7 {[%clk 0:00:05.6]} 28. Qe7+ {[%clk 0:00:29.7]} 28... Kh6 {[%clk
0:00:06.4]} 29. Qxd7 {[%clk 0:00:30.5]} 29... Qf4 {[%clk 0:00:03]} 30. Qh3+
{[%clk 0:00:28.4]} 30... Kg7 {[%clk 0:00:03]} 31. Re7+ {[%clk 0:00:28.7]} 1-0

[Event "*** Titled Tuesday 3|2 Blitz"]
[Site "Chess.com"]
[Date "2016.05.03"]
[Round "7"]
[White "tac49"]
[Black "Blitzstream"]
[Result "1/2-1/2"]
[WhiteElo "2566"]
[BlackElo "2423"]
[TimeControl "180+2"]
[EndTime "12:32:19 PDT"]
[Termination "Game drawn by repetition"]

1. Nf3 {[%clk 0:03:01.9]} 1... d5 {[%clk 0:03:00]} 2. d4 {[%clk 0:03:01.3]} 2...
Nf6 {[%clk 0:03:01.1]} 3. c4 {[%clk 0:03:02.1]} 3... c6 {[%clk 0:03:02.5]} 4.
Nc3 {[%clk 0:03:02]} 4... e6 {[%clk 0:03:03.1]} 5. e3 {[%clk 0:03:00.1]} 5...
Nbd7 {[%clk 0:03:03.8]} 6. Qc2 {[%clk 0:03:00]} 6... Bd6 {[%clk 0:03:04.9]} 7.
b3 {[%clk 0:02:57.4]} 7... O-O {[%clk 0:03:05.2]} 8. Be2 {[%clk 0:02:58.1]} 8...
Qe7 {[%clk 0:03:05.4]} 9. O-O {[%clk 0:02:52.9]} 9... e5 {[%clk 0:02:57]} 10.
cxd5 {[%clk 0:02:51.9]} 10... e4 {[%clk 0:02:57.8]} 11. Nh4 {[%clk 0:02:20.5]}
11... Nb6 {[%clk 0:01:55.3]} 12. f3 {[%clk 0:00:51.9]} 12... exf3 {[%clk
0:00:58.3]} 13. Nxf3 {[%clk 0:00:53.8]} 13... Nbxd5 {[%clk 0:00:58.7]} 14. Nxd5
{[%clk 0:00:47.2]} 14... cxd5 {[%clk 0:00:59.5]} 15. Ne5 {[%clk 0:00:41.4]}
15... Bxe5 {[%clk 0:00:50.3]} 16. dxe5 {[%clk 0:00:43.3]} 16... Qxe5 {[%clk
0:00:52.2]} 17. Bb2 {[%clk 0:00:44.9]} 17... Qxe3+ {[%clk 0:00:53.2]} 18. Kh1
{[%clk 0:00:46.5]} 18... Ne4 {[%clk 0:00:51.8]} 19. Bd3 {[%clk 0:00:34.8]} 19...
Bg4 {[%clk 0:00:30.4]} 20. h3 {[%clk 0:00:12.9]} 20... Ng3+ {[%clk 0:00:25.8]}
21. Kh2 {[%clk 0:00:14.2]} 21... Nxf1+ {[%clk 0:00:26.9]} 22. Rxf1 {[%clk
0:00:16.1]} 22... Rac8 {[%clk 0:00:22.9]} 23. Bxh7+ {[%clk 0:00:15.1]} 23... Kh8
{[%clk 0:00:24.1]} 24. Qb1 {[%clk 0:00:15.2]} 24... Be2 {[%clk 0:00:20.5]} 25.
Rf5 {[%clk 0:00:13.6]} 25... Bd3 {[%clk 0:00:19.2]} 26. Rh5 {[%clk 0:00:12.2]}
26... Qf4+ {[%clk 0:00:13.1]} 27. Kh1 {[%clk 0:00:12.3]} 27... Bxb1 {[%clk
0:00:10.9]} 28. Bxb1+ {[%clk 0:00:14.1]} 28... Kg8 {[%clk 0:00:12.1]} 29. Bh7+
{[%clk 0:00:15.7]} 29... Kh8 {[%clk 0:00:13.6]} 30. Bb1+ {[%clk 0:00:17.1]}
30... Kg8 {[%clk 0:00:14.8]} 31. Bh7+ {[%clk 0:00:18.5]} 31... Kh8 {[%clk
0:00:16.2]} 32. Bb1+ {[%clk 0:00:16.8]} 1/2-1/2

[Event "*** Titled Tuesday 3|2 Blitz"]
[Site "Chess.com"]
[Date "2016.05.03"]
[Round "7"]
[White "the_drake"]
[Black "Makalexa"]
[Result "0-1"]
[WhiteElo "2191"]
[BlackElo "2121"]
[TimeControl "180+2"]
[EndTime "12:32:25 PDT"]
[Termination "Makalexa won by resignation"]

1. e4 {[%clk 0:03:01.9]} 1... e5 {[%clk 0:02:57.8]} 2. Nf3 {[%clk 0:03:01.7]}
2... Nc6 {[%clk 0:02:57.3]} 3. Bc4 {[%clk 0:03:02.6]} 3... Bc5 {[%clk
0:02:57.5]} 4. b4 {[%clk 0:03:01.6]} 4... Bxb4 {[%clk 0:02:57.5]} 5. c3 {[%clk
0:02:55.1]} 5... Ba5 {[%clk 0:02:58.2]} 6. d4 {[%clk 0:02:51.4]} 6... exd4
{[%clk 0:02:58.1]} 7. Qb3 {[%clk 0:02:46.1]} 7... Qe7 {[%clk 0:02:48.2]} 8. O-O
{[%clk 0:02:38.8]} 8... Nf6 {[%clk 0:02:30.2]} 9. Ba3 {[%clk 0:02:29.3]} 9... d6
{[%clk 0:02:29.9]} 10. e5 {[%clk 0:02:26.9]} 10... Nxe5 {[%clk 0:02:29.1]} 11.
Nxe5 {[%clk 0:02:24.3]} 11... Qxe5 {[%clk 0:02:28.3]} 12. cxd4 {[%clk
0:02:25.2]} 12... Qh5 {[%clk 0:02:24]} 13. Bxf7+ {[%clk 0:02:10.8]} 13... Qxf7
{[%clk 0:02:23.3]} 14. Qb5+ {[%clk 0:02:10.2]} 14... Bd7 {[%clk 0:02:23.2]} 15.
Qxa5 {[%clk 0:02:11.2]} 15... Bc6 {[%clk 0:02:23.3]} 16. Nc3 {[%clk 0:02:09.4]}
16... O-O {[%clk 0:02:21.6]} 17. Qb4 {[%clk 0:02:05.7]} 17... Nd5 {[%clk
0:02:17.9]} 18. Qb3 {[%clk 0:02:03]} 18... Nxc3 {[%clk 0:02:01]} 19. Qxc3 {[%clk
0:02:02]} 19... Rae8 {[%clk 0:01:58.1]} 20. Bb2 {[%clk 0:01:59.4]} 20... Qd5
{[%clk 0:01:57.9]} 21. f3 {[%clk 0:01:55]} 21... Re2 {[%clk 0:01:54.5]} 22. Rf2
{[%clk 0:01:54.6]} 22... Rfe8 {[%clk 0:01:53.7]} 23. Raf1 {[%clk 0:01:53.9]}
23... R2e3 {[%clk 0:01:51.4]} 24. Qc2 {[%clk 0:01:50.2]} 24... h6 {[%clk
0:01:38.4]} 25. a3 {[%clk 0:01:47.4]} 25... Bb5 {[%clk 0:01:33.9]} 26. Qxc7
{[%clk 0:01:39.3]} 26... Re1 {[%clk 0:01:20.3]} 27. Qc3 {[%clk 0:01:21.8]} 27...
Bxf1 {[%clk 0:01:03.4]} 28. Rxf1 {[%clk 0:01:23.7]} 28... Qe6 {[%clk 0:00:52.4]}
29. h3 {[%clk 0:00:55.9]} 29... Rxf1+ {[%clk 0:00:48.8]} 30. Kxf1 {[%clk
0:00:57.8]} 30... Qe2+ {[%clk 0:00:48.2]} 31. Kg1 {[%clk 0:00:58.8]} 31... Qe3+
{[%clk 0:00:44.9]} 32. Kf1 {[%clk 0:00:57.8]} 32... Qxc3 {[%clk 0:00:42.4]} 33.
Bxc3 {[%clk 0:00:58.8]} 33... Re3 {[%clk 0:00:43.9]} 34. Bb4 {[%clk 0:00:56.7]}
34... d5 {[%clk 0:00:44.6]} 35. Kf2 {[%clk 0:00:57.8]} 35... Rb3 {[%clk
0:00:44.1]} 36. Bd6 {[%clk 0:00:57.6]} 36... Rd3 {[%clk 0:00:41.5]} 37. Ke2
{[%clk 0:00:48.5]} 37... Rxd4 {[%clk 0:00:41.2]} 38. Bc5 {[%clk 0:00:47.3]}
38... Ra4 {[%clk 0:00:41.9]} 39. Kd3 {[%clk 0:00:46.7]} 39... a6 {[%clk
0:00:32.3]} 40. Kc3 {[%clk 0:00:41.7]} 40... Rc4+ {[%clk 0:00:32]} 0-1

[Event "*** Titled Tuesday 3|2 Blitz"]
[Site "Chess.com"]
[Date "2016.05.03"]
[Round "7"]
[White "kikydu96"]
[Black "saraswathii"]
[Result "1-0"]
[WhiteElo "2285"]
[BlackElo "1973"]
[TimeControl "180+2"]
[EndTime "12:32:27 PDT"]
[Termination "kikydu96 won by checkmate"]

1. e4 {[%clk 0:02:58.8]} 1... c5 {[%clk 0:03:00.3]} 2. c3 {[%clk 0:02:58.5]}
2... Nf6 {[%clk 0:02:59.3]} 3. e5 {[%clk 0:02:59.3]} 3... Nd5 {[%clk 0:02:59.2]}
4. d4 {[%clk 0:03:00.9]} 4... cxd4 {[%clk 0:02:59]} 5. Nf3 {[%clk 0:03:02.2]}
5... Nc6 {[%clk 0:02:56.3]} 6. cxd4 {[%clk 0:03:02.8]} 6... d6 {[%clk
0:02:55.5]} 7. Bc4 {[%clk 0:03:03.7]} 7... dxe5 {[%clk 0:02:51.5]} 8. dxe5
{[%clk 0:03:03.4]} 8... e6 {[%clk 0:02:50.4]} 9. O-O {[%clk 0:03:04.3]} 9... Bc5
{[%clk 0:02:46.3]} 10. Nc3 {[%clk 0:02:56]} 10... Nxc3 {[%clk 0:02:46.1]} 11.
Qxd8+ {[%clk 0:02:57.2]} 11... Kxd8 {[%clk 0:02:44.8]} 12. bxc3 {[%clk
0:02:58.1]} 12... Kc7 {[%clk 0:02:42.5]} 13. Rd1 {[%clk 0:02:51.9]} 13... Bd7
{[%clk 0:02:42]} 14. Nd4 {[%clk 0:02:43.6]} 14... a6 {[%clk 0:02:32.8]} 15. Nb3
{[%clk 0:02:39]} 15... Bb6 {[%clk 0:02:30.7]} 16. a4 {[%clk 0:02:39.3]} 16...
Rac8 {[%clk 0:02:23.9]} 17. Ba3 {[%clk 0:02:35.8]} 17... Rcd8 {[%clk 0:02:20.6]}
18. a5 {[%clk 0:02:33.6]} 18... Ba7 {[%clk 0:02:18.6]} 19. Bd6+ {[%clk
0:02:34.1]} 19... Kc8 {[%clk 0:02:19.2]} 20. Nc5 {[%clk 0:02:30.1]} 20... Bxc5
{[%clk 0:02:16.7]} 21. Bxc5 {[%clk 0:02:30.7]} 21... Nxe5 {[%clk 0:02:16.8]} 22.
Be2 {[%clk 0:02:25.5]} 22... Bc6 {[%clk 0:02:11.7]} 23. Bd6 {[%clk 0:02:22.5]}
23... Ng6 {[%clk 0:02:09.7]} 24. Rab1 {[%clk 0:02:20.4]} 24... f5 {[%clk
0:01:09.9]} 25. Rb6 {[%clk 0:02:09.8]} 25... Bd5 {[%clk 0:01:02.2]} 26. c4
{[%clk 0:02:09]} 26... Be4 {[%clk 0:01:01.3]} 27. c5 {[%clk 0:02:03.4]} 27...
Kd7 {[%clk 0:00:52.5]} 28. Bc4 {[%clk 0:01:38.2]} 28... Rhe8 {[%clk 0:00:43]}
29. f3 {[%clk 0:01:13.4]} 29... Bc6 {[%clk 0:00:34]} 30. Rdb1 {[%clk 0:01:02.6]}
30... e5 {[%clk 0:00:16.2]} 31. Rxb7+ {[%clk 0:00:58.2]} 31... Bxb7 {[%clk
0:00:11.2]} 32. Rxb7+ {[%clk 0:01:00.1]} 32... Kc8 {[%clk 0:00:11.7]} 33. Bxa6
{[%clk 0:00:38.8]} 33... e4 {[%clk 0:00:12.1]} 34. Ra7# {[%clk 0:00:22.3]} 1-0